bitfinex-derivatives/quotes_SOLF0:USTF0_20260227
["timestamp","ask_amount","ask_price","bid_price","bid_amount"]
[1772176889816,3.74833961,87.059,87.01,3.37169329]
[1772176890015,3.74833961,87.059,87.009,10.3433]
[1772176892221,3.74833961,87.059,87.013,2.96720254]
[1772176892425,3.74833961,87.059,87.02,3.37169329]
[1772176892626,3.74833961,87.059,87.013,2.96720254]
[1772176899329,3.74833961,87.057,87.013,2.96720254]
[1772176899721,3.58427943,87.045,87.001,2.86364372]
[1772176899919,3.53230921,87.039,86.99,3.37169329]
[1772176900122,3.53230921,87.039,86.991,2.86774232]
[1772176900525,3.53230921,87.039,86.98,2.86774232]
[1772176900728,3.53230921,87.039,86.981,2.86774232]
[1772176901726,3.53230921,87.037,86.991,2.86774232]
[1772176901924,3.53230921,87.037,87.0,3.37169329]
[1772176905028,3.53230921,87.037,86.979,10.3469]
[1772176905337,160.7211,87.105,86.962,2.9531049]
[1772176905338,3.53230921,87.019,86.97,3.37169329]
[1772176905537,3.53230921,87.019,86.962,2.9531049]
[1772176906536,3.53230921,87.009,86.951,2.95092701]
[1772176906738,3.53230921,87.009,86.96,3.37169329]
[1772176907233,3.53230921,87.009,86.951,2.95092701]
[1772176908136,3.37169329,87.0,86.933,2.86641318]
[1772176908439,3.53230921,86.989,86.944,10.351]
[1772176909339,3.53230921,86.989,86.941,2.86641318]
[1772176909734,3.53230921,86.989,86.95,3.37169329]
[1772176910335,3.53230921,87.017,86.97,3.37169329]
[1772176910544,3.53230921,87.017,86.971,2.86049187]
[1772176911037,3.53230921,87.017,86.98,3.37169329]
[1772176911437,3.53230921,87.017,86.971,2.86049187]
[1772176914140,3.53230921,87.017,86.961,10.349]
[1772176914344,3.53230921,86.999,86.942,2.95487959]
[1772176914545,3.53230921,86.999,86.95,3.37169329]
[1772176916949,3.53230921,86.999,86.96,3.37169329]
[1772176918446,3.53230921,86.997,86.96,3.37169329]
[1772176920448,3.53230921,87.009,86.961,3.13421469]
[1772176920649,307.67613831,87.015,86.98,3.37169329]
[1772176920855,3.53230921,87.022,86.981,3.13421469]
[1772176923156,3.53230921,87.02,86.971,3.19105414]
[1772176923362,3.53230921,87.019,86.971,3.19105414]
[1772176923662,3.53230921,87.019,86.98,3.37169329]
[1772176924061,3.53230921,87.019,86.98,13.71849329]
[1772176924565,3.53230921,87.037,87.0,3.37169329]
[1772176924766,3.53230921,87.059,87.01,3.37169329]
[1772176925268,3.53230921,87.059,87.02,3.37169329]
[1772176928569,10.3376,87.058,87.02,3.37169329]
[1772176929767,3.53230921,87.057,87.02,3.37169329]
[1772176932070,3.53230921,87.057,87.02,6.54095455]
[1772176933568,3.53230921,87.057,87.021,3.11544924]
[1772176933771,3.53230921,87.057,87.03,3.37169329]
[1772176934875,10.3354,87.077,87.031,3.12274563]
[1772176934876,3.53884219,87.076,87.031,3.12274563]
[1772176936073,3.53884219,87.076,87.04,3.37169329]
[1772176937272,3.53884219,87.076,87.031,3.12274563]
[1772176938168,3.53884219,87.076,87.02,13.71379329]
[1772176938871,3.53884219,87.066,87.018,3.08918773]
[1772176939371,3.53884219,87.066,87.02,3.37728352]
[1772176939573,3.53884219,87.066,87.02,13.71938352]
[1772176940578,3.53884219,87.066,87.02,16.75565498]
[1772176942879,3.53884219,87.066,87.024,10.3416]
[1772176943075,3.53884219,87.066,87.02,3.37728352]
[1772176943076,3.53884219,87.066,87.025,3.38734918]
[1772176943879,3.53884219,87.066,87.026,10.3413]
[1772176944778,13.71228352,87.08,87.031,3.38667464]
[1772176944779,3.53884219,87.079,87.031,3.38667464]
[1772176945875,3.53884219,87.079,87.032,10.3406]
[1772176949585,3.53884219,87.079,87.036,3.37609974]
[1772176949986,3.53884219,87.079,87.04,6.75338326]
[1772176953292,3.53884219,87.079,87.038,10.3399]
[1772176953790,3.53884219,87.079,87.044,10.3391]
[1772176954191,3.53884219,87.079,87.04,3.37728352]
[1772176954691,3.53884219,87.079,87.039,3.39104541]
[1772176956687,3.53884219,87.079,87.036,10.3402]
[1772176956987,3.53884219,87.079,87.03,3.37728352]
[1772176957591,3.53884219,87.077,87.031,10.3407]
[1772176957883,3.53884219,87.077,87.032,3.40049628]
[1772176958085,3.53884219,87.077,86.992,20.6907]
[1772176958086,3.53884219,87.077,87.041,3.40049628]
[1772176959094,3.53884219,87.077,87.042,3.40088999]
[1772176960790,3.53884219,87.077,87.04,3.37728352]
[1772176963791,3.53884219,87.077,87.041,3.4234933]
[1772176964097,3.53884219,87.077,87.043,10.3393]
[1772176967101,3.53884219,87.077,87.035,10.3403]
[1772176968406,3.53884219,87.077,87.035,13.75753399]
[1772176969009,3.53884219,87.077,87.036,3.41723399]
[1772176972609,3.53884219,87.077,87.022,3.38866336]
[1772176972911,3.51044161,87.049,87.004,3.38866336]
[1772176973303,3.51044161,87.039,87.004,3.38866336]
[1772176973705,3.51044161,87.029,86.98,3.38866336]
[1772176974811,3.51044161,87.019,86.98,3.38866336]
[1772176977314,3.51044161,87.019,86.981,13.65527921]
[1772176977711,3.51044161,87.019,86.981,3.30857921]
[1772176978211,3.51044161,87.019,86.969,3.30492026]
[1772176979010,3.51044161,87.019,86.971,10.3479]
[1772176979210,6.88772513,87.01,86.969,3.30492026]
[1772176980819,6.88772513,87.01,86.917,34.5]
[1772176980820,3.51044161,87.023,86.971,3.30962164]
[1772176981913,3.51044161,87.023,86.982,3.30962164]
[1772176982722,3.51044161,87.023,86.984,3.32016611]
[1772176982924,3.37728352,87.03,86.984,3.32016611]
[1772176983124,3.51044161,87.035,86.984,3.32016611]
[1772176983326,3.37728352,87.04,86.994,3.32016611]
[1772176983625,3.51044161,87.046,86.994,3.32016611]
[1772176984924,3.51044161,87.046,87.003,10.3441]
[1772176985125,3.51044161,87.046,87.003,13.67019233]
[1772176987131,3.51044161,87.029,86.978,3.28621497]
[1772176987326,3.37728352,87.01,86.966,3.28621497]
[1772176988225,3.37728352,87.01,86.968,10.3483]
[1772176988226,3.51044161,87.009,86.968,10.3483]
[1772176990823,3.8122733,87.024,86.978,3.34675025]
[1772176991127,3.37728352,87.03,86.981,3.34675025]
[1772176991330,3.8122733,87.029,86.981,3.34675025]
[1772176991724,3.8122733,87.029,86.982,10.3466]
[1772176992030,3.8122733,87.029,86.983,3.34675025]
[1772176992927,3.8122733,87.029,86.988,3.56571755]
[1772176993123,3.37728352,87.04,86.991,3.56571755]
[1772176993730,3.37728352,87.05,87.001,3.56571755]
[1772176994231,3.8122733,87.049,87.001,3.56571755]
[1772176994935,3.8122733,87.049,87.003,10.3441]
[1772176996137,3.8122733,87.049,87.011,10.343]
[1772176997137,304.03660961,87.058,87.016,13.91560494]
[1772176997939,3.8122733,87.057,87.016,13.91560494]
[1772177003244,3.8122733,87.057,87.017,3.53701414]
[1772177003637,304.03660961,87.058,87.019,3.53701414]
[1772177003837,304.03660961,87.058,86.965,34.5]
[1772177003838,304.03660961,87.058,87.021,3.53701414]
[1772177004847,307.84888291,87.058,87.021,3.53701414]
[1772177005046,3.8122733,87.057,87.021,3.53701414]
[1772177007351,3.8122733,87.057,87.022,10.3418]
[1772177007553,304.03660961,87.058,87.023,3.55226254]
[1772177008549,3.8122733,87.093,87.042,13.89183034]
[1772177008754,3.8122733,87.089,87.042,3.55243034]
[1772177009053,3.8122733,87.079,87.042,3.55243034]
[1772177009442,3.8122733,87.079,87.045,13.89143034]
[1772177009952,304.43787777,87.089,87.046,3.55243034]
[1772177010454,304.43787777,87.089,87.049,3.60723107]
[1772177010954,304.43787777,87.089,87.056,10.3378]
[1772177011554,3.8122733,87.088,87.056,10.3378]
[1772177014557,3.8122733,87.1,87.063,3.5757252]
[1772177015850,3.8122733,87.117,87.071,3.5757252]
[1772177017061,3.8122733,87.117,87.08,10.3349]
[1772177017461,3.8122733,87.117,87.071,3.5757252]
[1772177017759,3.37802257,87.11,87.071,3.5757252]
[1772177018560,3.8122733,87.117,87.071,3.5757252]
[1772177018954,3.8122733,87.117,87.071,13.9117252]
[1772177019962,3.8122733,87.117,87.074,10.3356]
[1772177024465,3.8122733,87.117,87.074,13.80029771]
[1772177028163,3.87816565,87.109,87.063,3.48263598]
[1772177028363,3.87816565,87.099,87.063,3.48263598]
[1772177028563,7.25618822,87.11,87.063,3.48263598]
[1772177028764,3.87816565,87.109,87.063,3.48263598]
[1772177028962,3.87816565,87.109,87.065,3.48263598]
[1772177029863,3.87816565,87.119,87.071,3.48263598]
[1772177030869,3.87816565,87.119,87.075,10.3355]
[1772177031171,3.87816565,87.119,87.075,13.80299745]
[1772177032973,3.87816565,87.109,87.062,3.48054286]
[1772177033176,3.37802257,87.1,87.062,3.48054286]
[1772177033868,3.37802257,87.1,87.063,10.3369]
[1772177035273,3.37802257,87.1,87.065,10.3366]
[1772177037275,3.87816565,87.109,87.068,3.50819197]
[1772177038075,3.87816565,87.079,87.031,3.50865047]
[1772177038670,3.37802257,87.09,87.043,3.50865047]
[1772177039877,3.37802257,87.09,87.045,10.339]
[1772177040079,3.37802257,87.09,87.046,3.50865047]
[1772177040775,3.37802257,87.09,87.047,13.82577801]
[1772177041074,3.37802257,87.09,87.048,3.48697801]
[1772177042479,3.37802257,87.1,87.051,3.48789521]
[1772177043873,3.37802257,87.1,87.056,3.48789521]
[1772177044869,10.333,87.097,87.056,3.48789521]
[1772177045074,3.37802257,87.09,87.056,3.48789521]
[1772177047879,3.37802257,87.1,87.056,3.48789521]
[1772177048583,3.37802257,87.1,87.058,3.51263018]
[1772177049281,3.87816565,87.099,87.058,3.51263018]
[1772177050980,3.82043577,87.079,87.033,3.53731445]
[1772177051185,3.37802257,87.07,87.033,3.53731445]
[1772177051784,3.37802257,87.06,87.02,3.53731445]
[1772177053086,3.82043577,87.069,87.022,3.49777807]
[1772177053284,10.3352,87.078,87.022,3.49777807]
[1772177053790,3.37802257,87.08,87.033,3.49777807]
[1772177055085,3.37802257,87.08,87.037,3.56580434]
[1772177055886,3.37802257,87.08,87.039,10.3398]
[1772177057694,3.37802257,87.08,87.043,10.3393]
[1772177057891,3.37802257,87.08,87.044,3.5384161]
[1772177058088,3.82043577,87.083,87.044,3.5384161]
[1772177058902,3.82043577,87.083,87.045,10.3391]
[1772177060291,3.82043577,87.098,87.053,3.54086965]
[1772177060499,3.37802257,87.09,87.053,3.54086965]
[1772177061297,3.37511087,87.09,87.053,3.54086965]
[1772177061595,7.19554664,87.09,87.053,3.54086965]
[1772177061896,3.37511087,87.08,87.053,3.54086965]
[1772177062088,3.37511087,87.08,87.044,10.3392]
[1772177062595,7.19554664,87.08,87.044,10.3392]
[1772177062799,3.82043577,87.079,87.044,10.3392]
[1772177066193,3.37511087,87.09,87.047,3.55145157]
[1772177068198,3.82043577,87.089,87.047,3.55145157]
[1772177069399,3.82043577,87.089,87.046,10.3389]
[1772177071501,3.82043577,87.089,87.049,3.55297484]
[1772177073097,3.82043577,87.089,87.051,3.54769869]
[1772177078809,3.82043577,87.103,87.061,3.53302763]
[1772177082207,3.86766014,87.099,87.061,3.53302763]
[1772177082411,3.86766014,87.099,87.051,3.58367579]
[1772177084511,3.86766014,87.099,87.055,10.3379]
[1772177084713,3.86766014,87.099,87.056,3.58582837]
[1772177086014,3.86766014,87.099,87.058,10.3375]
[1772177087116,3.86766014,87.099,87.056,3.58582837]
[1772177090920,3.86766014,87.097,87.056,3.58582837]
[1772177091621,3.86766014,87.089,87.032,3.59012018]
[1772177093921,3.86766014,87.089,87.041,10.3395]
[1772177094323,3.86766014,87.089,87.041,13.92193602]
[1772177095122,3.86766014,87.087,87.042,3.58243602]
[1772177098230,3.86766014,87.079,87.042,3.58243602]
[1772177100226,3.37511087,87.11,87.052,3.58848171]
[1772177100424,3.37511087,87.11,87.061,3.58848171]
[1772177100425,3.86766014,87.104,87.061,3.58848171]
[1772177100928,3.86766014,87.104,87.066,3.58848171]
[1772177102032,3.86766014,87.099,87.056,10.3378]
[1772177102219,3.86766014,87.099,87.057,3.58940076]
[1772177102637,3.86766014,87.099,87.059,3.58940076]
[1772177104222,3.86766014,87.089,87.037,3.60767242]
[1772177104423,3.86766014,87.089,87.002,34.5]
[1772177104424,3.86766014,87.089,87.041,3.60767242]
[1772177105933,3.86766014,87.089,87.045,13.94677242]
[1772177106130,3.86766014,87.089,87.046,3.60767242]
[1772177109036,3.86766014,87.087,87.046,3.60767242]
[1772177112038,3.86766014,87.087,87.047,10.3388]
[1772177113440,3.86766014,87.087,87.052,10.3382]
[1772177117338,3.86766014,87.087,87.048,3.59363612]
[1772177117536,3.86766014,87.087,87.036,3.58969245]
[1772177117737,3.84032952,87.069,87.021,3.58969245]
[1772177118142,3.84032952,87.068,87.021,13.93159245]
[1772177118539,3.84032952,87.068,87.022,3.58848504]
[1772177118936,3.84032952,87.079,87.031,3.58848504]
[1772177120144,3.84032952,87.079,87.035,3.58848504]
[1772177122150,3.84032952,87.079,87.01,300.72366209]
[1772177122151,3.84032952,87.09,87.04,3.37511087]
[1772177122350,8.57012617,87.089,87.041,3.5936926]
[1772177122554,3.84032952,87.09,87.041,3.5936926]
[1772177124047,3.84032952,87.09,87.04,3.37526034]
[1772177124048,3.84032952,87.089,87.043,3.5936926]
[1772177126146,3.84032952,87.089,87.045,3.61109139]
[1772177126450,3.84032952,87.089,87.044,10.3392]
[1772177126451,3.84032952,87.089,87.051,3.61109139]
[1772177127250,3.84032952,87.1,87.051,3.61109139]
[1772177128046,3.84032952,87.1,87.053,3.61109139]
[1772177128254,3.84032952,87.1,87.061,3.61481754]
[1772177131054,3.84032952,87.1,87.012,28.62606928]
[1772177131055,3.84032952,87.089,87.041,3.55318349]
[1772177131954,3.84032952,87.101,87.051,3.55318349]
[1772177132154,3.84032952,87.1,87.051,3.55318349]
[1772177132955,3.84032952,87.1,87.053,3.52089891]
[1772177135659,3.84032952,87.1,87.057,3.46474078]
[1772177136752,3.37526034,87.11,87.061,3.46321273]
[1772177136956,3.84032952,87.111,87.071,3.46321273]
[1772177141363,3.84032952,87.111,87.073,3.44226233]
[1772177142867,3.84032952,87.111,87.074,10.3357]
[1772177143265,3.84032952,87.111,87.073,3.44226233]
[1772177144068,3.84032952,87.111,87.075,3.49818961]
[1772177144267,3.64370386,87.122,87.081,3.49818961]
[1772177151471,3.64370386,87.132,87.091,3.50884369]
[1772177151773,3.64370386,87.144,87.101,3.50884369]
[1772177151974,3.64370386,87.144,87.111,3.50884369]
[1772177152174,3.64370386,87.158,87.111,3.50884369]
[1772177152970,3.64370386,87.158,87.121,3.51497517]
[1772177154477,303.51356896,87.162,87.121,13.84507517]
[1772177154775,3.64370386,87.169,87.131,3.50773266]
[1772177161879,3.64370386,87.169,87.071,34.5]
[1772177161880,3.64370386,87.169,87.121,3.64054659]
[1772177162984,3.64370386,87.167,87.121,3.64054659]
[1772177165181,3.37526034,87.16,87.11,3.37526034]
[1772177165385,3.64370386,87.139,87.091,3.60578031]
[1772177166883,3.64370386,87.139,87.097,10.3328]
[1772177167184,3.64370386,87.139,87.098,3.62124244]
[1772177168481,7.0189642,87.15,87.102,3.5767656]
[1772177169280,3.64370386,87.161,87.113,3.5767656]
[1772177169679,3.64370386,87.161,87.121,3.5767656]
[1772177170680,3.64370386,87.161,87.122,3.52162291]
[1772177171481,3.64370386,87.161,87.124,3.52162291]
[1772177173689,3.37526034,87.16,87.124,3.52162291]
[1772177174277,3.64370386,87.161,87.126,3.53311726]
[1772177174484,3.6975958,87.179,87.131,3.53311726]
[1772177175382,3.6975958,87.179,87.134,10.3285]
[1772177176395,3.6975958,87.179,87.134,13.98321347]
[1772177176688,3.6975958,87.179,87.138,3.65471347]
[1772177176884,3.6975958,87.189,87.138,3.65471347]
[1772177177682,3.6975958,87.189,87.144,3.65471347]
[1772177178593,3.6975958,87.189,87.146,3.61218995]
[1772177180085,3.6975958,87.189,87.148,13.93908995]
[1772177180489,3.6975958,87.189,87.148,3.61218995]
[1772177182887,3.6975958,87.189,87.149,10.3267]
[1772177183491,3.6975958,87.189,87.148,3.61218995]
[1772177185594,3.6975958,87.189,87.151,10.3265]
[1772177185786,3.6975958,87.209,87.152,3.51270698]
[1772177185983,3.36780231,87.2,87.152,3.51270698]
[1772177186393,3.6975958,87.209,87.162,3.51422199]
[1772177187190,7.06539811,87.22,87.179,3.51422199]
[1772177188798,3.6975958,87.219,87.179,3.51422199]
[1772177190393,3.6975958,87.199,87.161,10.3253]
[1772177190601,3.6975958,87.199,87.161,13.87204071]
[1772177191494,3.6975958,87.199,87.165,10.3248]
[1772177191885,3.6975958,87.199,87.165,13.87154071]
[1772177192788,7.06539811,87.21,87.17,13.86536373]
[1772177193392,3.6975958,87.21,87.175,10.3237]
[1772177193592,3.6975958,87.21,87.176,3.54116373]
[1772177194399,3.6975958,87.209,87.176,3.54116373]
[1772177200004,3.6975958,87.209,87.176,13.86476373]
[1772177205004,10.62228104,87.263,87.154,3.77649008]
[1772177205005,3.76475028,87.199,87.154,3.77649008]
[1772177205210,3.36780231,87.2,87.154,3.77649008]
[1772177205211,3.76475028,87.189,87.154,3.77649008]
[1772177205605,3.76475028,87.189,87.156,10.3259]
[1772177205811,3.76475028,87.179,87.154,3.77649008]
[1772177206017,3.76475028,87.169,87.11,3.36780231]
[1772177206913,3.76475028,87.169,87.128,10.3292]
[1772177207116,3.76475028,87.169,87.11,3.36780231]
[1772177207316,3.76475028,87.169,87.12,3.36780231]
[1772177207512,7.19159086,87.18,87.12,3.36780231]
[1772177208006,7.19159086,87.18,87.121,0.10548691]
[1772177209014,7.19159086,87.18,87.138,0.17013498]
[1772177211012,7.19159086,87.18,87.144,10.3273]
[1772177211319,3.90614623,87.179,87.144,10.3273]
[1772177217715,3.90614623,87.179,87.12,3.36780231]
[1772177217921,3.36780231,87.17,87.11,3.36780231]
[1772177218220,3.36780231,87.17,87.12,3.36780231]
[1772177218617,3.90614623,87.179,87.12,3.36780231]
[1772177219027,3.90614623,87.179,87.128,10.3293]
[1772177220621,3.90614623,87.179,87.138,10.328]
[1772177226532,7.28020919,87.17,87.138,10.328]
[1772177226730,7.28020919,87.17,87.129,10.3291]
[1772177227332,3.91240688,87.17,87.129,10.3291]
[1772177227535,7.28020919,87.17,87.137,10.3281]
[1772177227835,3.36780231,87.17,87.137,10.3281]
[1772177228730,3.92321341,87.179,87.137,10.3281]
[1772177229424,7.29101572,87.17,87.137,10.3281]
[1772177229628,3.92321341,87.169,87.137,10.3281]
[1772177231138,3.92321341,87.169,87.127,10.3293]
[1772177232039,3.92321341,87.169,87.134,10.3285]
[1772177239935,3.36780231,87.17,87.134,10.3285]
[1772177241741,7.29215947,87.17,87.134,10.3285]
[1772177242642,3.92467931,87.169,87.134,10.3285]
[1772177246942,3.92192901,87.149,87.097,21.31658827]
[1772177247248,3.92192901,87.119,87.062,21.31658827]
[1772177247440,3.92192901,87.119,87.06,3.36917485]
[1772177249047,3.36917485,87.11,87.073,10.3358]
[1772177249243,7.29995759,87.11,87.073,10.3358]
[1772177250348,7.29995759,87.11,87.077,10.3352]
[1772177250549,3.93078274,87.11,87.077,10.3352]
[1772177252050,3.93078274,87.11,87.074,0.03111997]
[1772177252442,7.29995759,87.11,87.074,0.03111997]
[1772177253949,3.8841195,87.109,87.074,0.03111997]
[1772177258057,3.88580304,87.099,87.058,10.3375]
[1772177259051,3.89195964,87.089,87.05,10.3385]
[1772177259656,3.89195964,87.089,87.057,10.3376]
[1772177260453,3.36917485,87.09,87.057,10.3376]
[1772177260656,7.26178842,87.1,87.057,10.3376]
[1772177262856,3.89308727,87.099,87.057,10.3376]
[1772177265552,3.89308727,87.099,87.048,10.3387]
[1772177266355,3.89308727,87.099,87.05,3.36917485]
[1772177266958,3.89308727,87.099,87.052,10.3383]
[1772177272163,3.89308727,87.099,87.015,281.95264003]
[1772177272164,3.89308727,87.099,87.06,13.70647485]
[1772177272461,3.36917485,87.12,87.07,3.36917485]
[1772177272661,3.99419431,87.119,87.07,3.36917485]
[1772177273862,3.99419431,87.109,87.05,3.36917485]
[1772177274459,3.99419431,87.109,87.06,3.36917485]
[1772177274954,3.94320813,87.107,87.06,3.36917485]
[1772177278361,3.95662743,87.104,87.052,10.3383]
[1772177279853,3.95662743,87.104,87.06,3.36917485]
[1772177279854,10.3322,87.103,87.06,3.36917485]
[1772177280052,3.95662743,87.102,87.06,3.36917485]
[1772177280263,3.95662743,87.102,87.06,13.70647485]
[1772177281661,3.95662743,87.102,87.051,10.3383]
[1772177282257,3.95662743,87.102,87.058,10.3375]
[1772177282465,3.95662743,87.102,87.05,3.36917485]
[1772177283066,3.96502522,87.1,87.052,10.3383]
[1772177283360,3.96502522,87.079,87.03,3.36917485]
[1772177283561,3.96502522,87.079,87.02,3.36917485]
[1772177283763,3.96502522,87.078,87.023,10.3417]
[1772177284865,3.96473357,87.075,87.023,10.3417]
[1772177286465,3.96473357,87.075,87.03,3.36917485]
[1772177286862,3.96473357,87.075,87.031,10.3407]
[1772177287259,3.96473357,87.075,87.03,3.36917485]
[1772177287464,3.93585589,87.086,87.04,3.36917485]
[1772177289864,3.93086097,87.084,87.03,3.36917485]
[1772177290471,3.93798766,87.08,87.03,3.36917485]
[1772177291174,3.93798766,87.08,87.031,10.3407]
[1772177291374,3.93798766,87.08,87.04,3.36917485]
[1772177291774,3.93798766,87.08,87.031,10.3407]
[1772177291973,3.93798766,87.08,87.04,3.36917485]
[1772177294079,3.93798766,87.08,87.043,10.3393]
[1772177295071,3.93798766,87.08,87.04,3.36917485]
[1772177298483,3.93798766,87.08,87.034,10.3404]
[1772177303480,3.97400351,87.079,87.034,10.3404]
[1772177304477,3.97400351,87.079,87.041,10.3395]
[1772177306579,4.03658805,87.072,87.015,281.95264003]
[1772177306784,4.03658805,87.084,87.04,3.37591437]
[1772177307179,4.03658805,87.084,87.03,3.37591437]
[1772177307980,4.03658805,87.084,87.032,10.3407]
[1772177309084,4.03658805,87.084,87.04,3.37591437]
[1772177314288,4.03658805,87.084,87.04,13.71561437]
[1772177314489,302.8706544,87.09,87.05,3.37591437]
[1772177314887,4.07425118,87.089,87.05,3.37591437]
[1772177315986,4.07425118,87.089,87.048,10.3387]
[1772177318185,4.12663213,87.079,87.021,21.43879589]
[1772177318391,4.12663213,87.079,87.02,3.37591437]
[1772177318593,4.12663213,87.079,87.03,3.37591437]
[1772177319091,4.12663213,87.079,87.037,10.34]
[1772177324498,4.15064376,87.101,87.06,3.37591437]
[1772177324704,4.15064376,87.101,87.055,10.3379]
[1772177325503,4.15064376,87.099,87.05,3.37591437]
[1772177328099,4.1428357,87.097,87.05,3.37591437]
[1772177328907,10.3329,87.098,87.015,281.95264003]
[1772177328908,4.1428357,87.089,87.037,10.34]
[1772177331210,4.14100558,87.069,87.018,10.3423]
[1772177333209,4.14100558,87.069,87.024,10.3415]
[1772177334207,4.14156602,87.066,87.015,10.3427]
[1772177334912,4.13206385,87.064,87.015,10.3427]
[1772177336406,4.13206385,87.064,87.02,3.37591437]
[1772177338209,4.11939272,87.059,87.006,10.3437]
[1772177338414,4.11939272,87.049,87.0,3.37591437]
[1772177338714,4.11939272,87.048,87.0,3.37591437]
[1772177340416,4.11939272,87.048,87.01,10.3432]
[1772177341507,4.11939272,87.048,87.01,13.71911437]
[1772177343510,308.95544393,87.085,86.968,28.62606928]
[1772177343511,4.1568797,87.069,87.02,3.37591437]
[1772177343910,4.1568797,87.083,87.03,3.37591437]
[1772177344911,4.1568797,87.083,87.03,13.71671437]
[1772177346716,4.1568797,87.083,87.038,10.3398]
[1772177347017,4.1568797,87.083,87.04,3.37591437]
[1772177352223,4.1568797,87.083,87.052,10.3382]
[1772177353024,4.1568797,87.083,87.05,3.37591437]
[1772177353221,4.1568797,87.083,87.043,10.3393]
[1772177356219,4.1568797,87.083,87.015,21.43879589]
[1772177356220,4.1568797,87.083,87.035,10.3403]
[1772177362734,4.1568797,87.083,87.042,10.3394]
[1772177365633,4.07324196,87.079,87.042,10.3394]
[1772177375636,3.72676937,87.049,86.983,34.43]
[1772177375835,3.72676937,87.047,86.984,3.64328915]
[1772177376139,3.72676937,87.045,87.001,3.64328915]
[1772177376442,3.72676937,87.043,87.001,3.64328915]
[1772177378243,3.72676937,87.039,86.981,3.64328915]
[1772177380049,3.8116355,87.037,86.981,3.64328915]
[1772177380749,3.79910586,87.035,86.981,3.64328915]
[1772177381846,3.79910586,87.035,86.97,3.68052043]
[1772177382045,3.79910586,87.019,86.961,3.68052043]
[1772177382250,3.79910586,87.019,86.971,3.68052043]
[1772177384844,10.3424,87.018,86.971,3.68052043]
[1772177385045,3.79910586,87.017,86.971,3.68052043]
[1772177385450,3.79910586,87.014,86.971,3.68052043]
[1772177386148,3.79910586,87.012,86.971,3.68052043]
[1772177388647,10.3434,87.01,86.96,3.68052043]
[1772177388947,310.41528357,87.049,86.96,3.68052043]
[1772177388948,3.79910586,87.009,86.961,3.68052043]
[1772177390450,3.79910586,87.008,86.961,3.68052043]
[1772177391153,3.79910586,87.008,86.97,3.3763475]
[1772177391343,3.79910586,87.008,86.971,3.68052043]
[1772177393055,10.3423,87.019,86.971,3.68052043]
[1772177393652,8.5202157,87.048,86.981,3.68052043]
[1772177393653,10.3412,87.028,86.981,3.68052043]
[1772177394156,3.79910586,87.036,86.991,3.68052043]
[1772177394455,3.79910586,87.032,86.991,3.68052043]
[1772177394856,10.3414,87.026,86.991,3.68052043]
[1772177395055,3.79910586,87.032,86.991,3.68052043]
[1772177395758,310.41528357,87.049,87.001,3.68052043]
[1772177396254,3.79910586,87.048,87.001,3.68052043]
[1772177396655,3.79910586,87.04,87.001,3.68052043]
[1772177397854,10.3404,87.035,87.001,3.68052043]
[1772177398250,3.79910586,87.034,87.001,3.68052043]
[1772177398745,3.79910586,87.029,86.99,3.3763475]
[1772177399067,3.79910586,87.029,86.99,7.05686793]
[1772177399358,3.79910586,87.029,86.991,3.68052043]
[1772177400547,10.3412,87.028,86.991,3.68052043]
[1772177401156,3.79910586,87.058,87.001,3.68052043]
[1772177401356,3.79910586,87.058,87.02,3.3763475]
[1772177401558,3.79910586,87.058,87.02,7.05686793]
[1772177401860,3.79910586,87.058,87.021,3.68052043]
[1772177403858,14.13670586,87.058,87.021,3.68052043]
[1772177404960,3.79910586,87.058,87.021,3.68052043]
[1772177408660,3.79910586,87.081,87.041,3.68052043]
[1772177409367,10.3354,87.077,87.041,3.68052043]
[1772177409562,3.79910586,87.076,87.027,3.68052043]
[1772177410864,10.3369,87.064,87.027,3.68052043]
[1772177411166,3.79910586,87.076,87.027,3.68052043]
[1772177411365,3.79910586,87.076,87.03,3.3763475]
[1772177411965,3.83761566,87.072,87.03,3.3763475]
[1772177412959,10.3365,87.068,87.03,3.3763475]
[1772177414061,10.3365,87.068,87.027,3.68052043]
[1772177414456,3.83761566,87.065,87.014,3.5762155]
[1772177414660,3.83761566,87.065,87.02,3.3763475]
[1772177415762,3.83761566,87.065,87.021,3.5762155]
[1772177416066,10.3372,87.062,87.021,3.5762155]
[1772177416366,14.17481566,87.062,87.021,3.5762155]
[1772177417361,10.3376,87.059,87.021,3.5762155]
[1772177419667,14.17521566,87.059,87.021,3.5762155]
[1772177421768,3.83761566,87.053,87.0,3.3763475]
[1772177422471,3.83761566,87.033,86.99,3.3763475]
[1772177422769,3.83761566,87.033,86.98,10.3467]
[1772177422770,3.83761566,87.033,86.98,3.3763475]
[1772177423169,10.3418,87.023,86.98,3.3763475]
[1772177423670,3.83761566,87.03,86.98,3.3763475]
[1772177423862,3.83761566,87.03,86.981,3.5762155]
[1772177424666,3.83761566,87.03,86.991,3.5762155]
[1772177425968,3.83761566,87.048,87.0,3.3763475]